fUSD/lending_fUSD_20251108
["ID","MTS","AMOUNT","RATE_DAILY","PERIOD"]
[393417326,1762633831491,-166.66,0.0001671,2]
[393417328,1762633831501,-203.6931875,0.00016727,2]
[393417330,1762633831510,-186.64,0.00016976,2]
[393417331,1762633831522,-445.06603811,0.0001699,2]
[393417332,1762633831532,-250.0,0.00017,2]
[393417333,1762633831541,-776.49333439,0.00017,2]
[393417334,1762633831552,-564.49194106,0.00017,2]
[393417335,1762633831565,-505.6086,0.00017,2]
[393417336,1762633831577,-153.40612455,0.00017,2]
[393417337,1762633831586,-166.66,0.00017048,2]
[393417338,1762633831596,-1200.0,0.00017095,2]
[393417339,1762633831607,-300.0,0.00017095,2]
[393417340,1762633831616,-1200.0,0.00017096,2]
[393417341,1762633831625,-300.0,0.00017096,2]
[393417342,1762633831635,-300.0,0.00017096,2]
[393417343,1762633831645,-317.2591,0.00017099,2]
[393417344,1762633831654,-1882.8869,0.00017099,2]
[393417345,1762633831663,-796.24,0.00017141,2]
[393417346,1762633831673,-284.05660416,0.00017164,2]
[393417347,1762633831683,-8738.59423752,0.00017164,2]
[393417348,1762633831692,-500.0,0.00017173,2]
[393417349,1762633831702,-500.0,0.00017173,2]
[393417350,1762633831712,-500.0,0.00017173,2]
[393417351,1762633831721,-500.0,0.00017173,2]
[393417352,1762633831730,-424.97202743,0.00017188,2]
[393417353,1762633831741,-75.02797257,0.00017188,2]
[393417354,1762633831750,-151.0,0.00017189,2]
[393417355,1762633831760,-151.0,0.00017189,2]
[393417356,1762633831769,-151.0,0.00017189,2]
[393417357,1762633831778,-246.20025685,0.00017189,2]
[393417358,1762633831787,-326.60880071,0.00017198,2]
[393417359,1762633831797,-500.0,0.00017198,2]
[393417360,1762633831806,-500.0,0.00017198,2]
[393417361,1762633831816,-264.88126713,0.00017198,2]
[393417363,1762633831825,-35599.16705395,0.00017199,2]
[393417366,1762633831840,-1417.3412698,0.00017199,2]
[393417368,1762633831851,-3089.86055796,0.00017199,2]
[393417379,1762633837808,-2619.26529892,0.00017199,2]
[393417381,1762633837819,-605.50146086,0.00017199,2]
[393417384,1762633837831,-443.27017191,0.00017199,2]
[393417386,1762633837842,-373.57020428,0.00017199,2]
[393417388,1762633837853,-7723.9337847,0.00017199,2]
[393417390,1762633837864,-519.10734144,0.00017199,2]
[393417446,1762633842628,-270.76163892,0.00017199,2]
[393417447,1762633842680,-567.08207262,0.00017199,2]
[393417451,1762633845673,-738.4500015,0.00017199,2]
[393417452,1762633845729,-2220.977,0.00017199,2]
[393417453,1762633845741,-662.07574449,0.00017199,2]
[393417454,1762633845751,-2324.29556668,0.00017199,2]
[393417455,1762633845795,-607.29,0.00017199,2]
[393417456,1762633845806,-1120.35139623,0.00017199,2]
[393417457,1762633846015,-93783.1030233,0.00017199,2]
[393417458,1762633846094,-8655.96235157,0.00017199,2]
[393417463,1762634158668,200.0,0.00016305,2]
[393417465,1762634175584,594.59,0.00013699,2]
[393417466,1762634210298,498.9,0.0001629,2]
[393417477,1762635031676,-195.0,0.00016826,2]
[393417478,1762635031687,-1782.0,0.00016836,2]
[393417480,1762635031696,-300.0,0.00016984,2]
[393417482,1762635031705,-1200.0,0.00016984,2]
[393417484,1762635031714,-300.0,0.00016984,2]
[393417486,1762635031724,-300.0,0.00016984,2]
[393417487,1762635031733,-1200.0,0.00016985,2]
[393417488,1762635031743,-28144.49,0.00016986,2]
[393417489,1762635031752,-2500.0,0.00016999,2]
[393417490,1762635031762,-2000.0,0.00017,2]
[393417491,1762635031771,-231.07309834,0.00017016,2]
[393417492,1762635031781,-4191.49877192,0.00017018,2]
[393417494,1762635031791,-8028.24418298,0.00017018,2]
[393417495,1762635031800,-151.0,0.00017089,2]
[393417496,1762635031809,-151.0,0.00017089,2]
[393417497,1762635031818,-151.0,0.00017089,2]
[393417498,1762635031828,-151.0,0.00017089,2]
[393417499,1762635031837,-151.0,0.00017089,2]
[393417500,1762635031847,-151.0,0.00017089,2]
[393417501,1762635031858,-151.0,0.00017089,2]
[393417502,1762635031870,-151.0,0.00017096,2]
[393417503,1762635031881,-295.92941565,0.00017098,2]
[393417504,1762635031890,-460.0,0.00017098,2]
[393417505,1762635031900,-500.0,0.00017098,2]
[393417506,1762635031911,-500.0,0.00017098,2]
[393417507,1762635031920,-500.0,0.00017098,2]
[393417508,1762635031930,-500.0,0.00017098,2]
[393417509,1762635031942,-500.0,0.00017098,2]
[393417510,1762635031951,-505.64838895,0.00017098,2]
[393417511,1762635031961,-460.0,0.00017098,2]
[393417512,1762635031970,-377.94170616,0.00017098,2]
[393417513,1762635031979,-26249.63138453,0.00017099,2]
[393417514,1762635031991,-45360.10264547,0.00017099,2]
[393417515,1762635032004,-66887.38091539,0.00017099,2]
[393417516,1762635032015,-4987.0548153,0.00017099,2]
[393417517,1762635032026,-284.68336183,0.00017099,2]
[393417519,1762635032037,-20346.8598172,0.00017099,2]
[393417521,1762635032048,-1116.68,0.00017099,2]
[393417523,1762635032080,-1515.09423458,0.00017099,2]
[393417525,1762635032091,-2572.07999342,0.00017099,2]
[393417528,1762635032110,-97824.54242936,0.00017099,2]
[393417529,1762635032121,-152855.89040292,0.00017099,2]
[393417530,1762635032131,-4191.49877183,0.00017116,2]
[393417531,1762635032140,-8028.2441829,0.00017116,2]
[393417532,1762635032149,-500.0,0.00017118,2]
[393417533,1762635032159,-1782.0,0.00017123,2]
[393417534,1762635032168,-500.0,0.00017151,2]
[393417535,1762635032178,-500.0,0.00017173,2]
[393417536,1762635032187,-203.26715863,0.00017173,2]
[393417537,1762635032196,-500.47716849,0.00017173,2]
[393417538,1762635032206,-500.0,0.00017173,2]
[393417539,1762635032216,-500.0,0.00017173,2]
[393417540,1762635032225,-500.0,0.00017173,2]
[393417541,1762635032234,-500.0,0.00017173,2]
[393417542,1762635032244,-500.0,0.00017173,2]
[393417543,1762635032254,-154.77872973,0.00017188,2]
[393417544,1762635032264,-345.6160672,0.00017191,2]
[393417545,1762635032273,-188542.8443498,0.00017191,2]
[393417546,1762635032283,-625.0443216,0.00017191,2]
[393417547,1762635032292,-825.4315656,0.00017191,2]
[393417548,1762635032301,-38219.8750022,0.00017191,2]
[393417549,1762635032310,-2161.94154,0.00017199,2]
[393417550,1762635032320,-4191.49877183,0.00017214,2]
[393417551,1762635032329,-8028.2441829,0.00017214,2]
[393417552,1762635032338,-999.0,0.00017264,3]
[393417553,1762635032348,-518.0,0.00017301,2]
[393417554,1762635032510,-4191.49877183,0.00017312,2]
[393417555,1762635032520,-8028.2441829,0.00017312,2]
[393417556,1762635032530,-518.0,0.00017346,2]
[393417557,1762635032539,-166.66,0.00017385,2]
[393417558,1762635032548,-500.0,0.00017398,2]
[393417559,1762635032557,-2840.8025732,0.00017399,2]
[393417560,1762635032567,-4191.49877183,0.0001741,2]
[393417561,1762635032576,-8028.2441829,0.0001741,2]
[393417562,1762635032585,-518.0,0.0001742,2]
[393417563,1762635032594,-500.0,0.000175,2]
[393417564,1762635032603,-4191.49877183,0.00017508,2]
[393417565,1762635032612,-8028.2441829,0.00017508,2]
[393417566,1762635032621,-512.831797,0.00017511,2]
[393417567,1762635032631,-512.831797,0.00017511,2]
[393417568,1762635032639,-512.831797,0.00017511,2]
[393417569,1762635032649,-512.831797,0.00017511,2]
[393417570,1762635032658,-1605.0,0.00017512,2]
[393417571,1762635032667,-518.0,0.00017514,2]
[393417572,1762635032676,-518.0,0.00017519,2]
[393417573,1762635032686,-151.0,0.0001752,2]
[393417574,1762635032695,-201.916684,0.0001752,2]
[393417575,1762635032705,-296.732271,0.0001752,2]
[393417576,1762635032715,-784.09,0.0001752,2]
[393417577,1762635032724,-1605.0,0.00017552,2]
[393417578,1762635032733,-4191.49877183,0.00017606,2]
[393417579,1762635032743,-8028.2441829,0.00017606,2]
[393417580,1762635032752,-278.335252,0.00017607,2]
[393417581,1762635032762,-1234.820059,0.00017607,2]
[393417582,1762635032772,-278.335252,0.00017607,2]
[393417583,1762635032781,-278.335252,0.00017607,2]
[393417584,1762635032791,-1234.820059,0.00017607,2]
[393417585,1762635032800,-278.335252,0.00017607,2]
[393417586,1762635032810,-1234.820059,0.00017607,2]
[393417587,1762635032819,-1234.820059,0.00017607,2]
[393417588,1762635032829,-5000.0,0.00017615,2]
[393417589,1762635032838,-151.0,0.00017615,2]
[393417590,1762635032847,-1605.0,0.00017629,2]
[393417591,1762635032858,-1605.0,0.00017696,2]
[393417592,1762635032871,-4191.49877183,0.00017704,2]
[393417593,1762635032881,-8028.2441829,0.00017704,2]
[393417594,1762635032891,-151.0,0.00017705,2]
[393417595,1762635032900,-1605.0,0.00017715,2]
[393417596,1762635032910,-1605.0,0.00017718,2]
[393417597,1762635032919,-1000.0,0.00017721,2]
[393417598,1762635032929,-1000.0,0.00017721,2]
[393417599,1762635032940,-500.0,0.00017721,2]
[393417600,1762635032949,-1000.0,0.00017721,2]
[393417601,1762635032959,-166.66,0.00017723,2]
[393417602,1762635032969,-9999.99,0.00017728,2]
[393417603,1762635032978,-1427.6,0.00017728,2]
[393417604,1762635032988,-9999.99,0.00017728,2]
[393417605,1762635032997,-150.99,0.00017728,2]
[393417606,1762635033007,-9999.99,0.00017728,2]
[393417607,1762635033016,-150.0,0.0001777,2]
[393417608,1762635033026,-784.09,0.00017794,2]
[393417609,1762635033035,-4191.49877183,0.00017802,2]
[393417610,1762635033044,-8028.2441829,0.00017802,2]
[393417611,1762635033053,-512.831797,0.00017803,2]
[393417612,1762635033062,-512.831797,0.00017803,2]
[393417613,1762635033071,-512.831797,0.00017803,2]
[393417614,1762635033081,-512.831797,0.00017803,2]
[393417615,1762635033090,-1605.0,0.00017809,2]
[393417616,1762635033099,-392.6,0.00017812,2]
[393417617,1762635033109,-1605.0,0.00017841,2]
[393417618,1762635033117,-151.0,0.00017841,2]
[393417619,1762635033127,-300.0,0.00017842,2]
[393417620,1762635033136,-1605.0,0.00017865,2]
[393417621,1762635033145,-1605.0,0.00017869,2]
[393417622,1762635033154,-1687.77411727,0.000179,2]
[393417623,1762635033164,-170.72806348,0.000179,2]
[393417624,1762635033172,-1281.492,0.000179,2]
[393417625,1762635033182,-1081.05131309,0.000179,2]
[393417626,1762635033192,-278.335252,0.000179,2]
[393417627,1762635033201,-1234.820059,0.000179,2]
[393417628,1762635033210,-278.335252,0.000179,2]
[393417629,1762635033219,-278.335252,0.000179,2]
[393417630,1762635033228,-1234.820059,0.000179,2]
[393417631,1762635033237,-278.335252,0.000179,2]
[393417632,1762635033246,-1234.820059,0.000179,2]
[393417633,1762635033255,-1234.820059,0.000179,2]
[393417634,1762635033264,-4191.49877183,0.000179,2]
[393417635,1762635033274,-8028.2441829,0.000179,2]
[393417636,1762635033283,-1110.89411707,0.000179,2]
[393417637,1762635033293,-1605.0,0.00017926,2]
[393417638,1762635033302,-7589.0,0.00017973,2]
[393417639,1762635033311,-13649.0,0.00017973,2]
[393417640,1762635033320,-2105.0,0.00017973,2]
[393417641,1762635033329,-500.0,0.00017973,2]
[393417642,1762635033338,-500.0,0.00017973,2]
[393417643,1762635033348,-500.0,0.00017973,2]
[393417644,1762635033358,-503.6822994,0.00017973,2]
[393417645,1762635033367,-500.0,0.00017973,2]
[393417646,1762635033376,-500.0,0.00017973,2]
[393417647,1762635033385,-502.27692718,0.00017973,2]
[393417648,1762635033395,-500.54101562,0.00017973,2]
[393417649,1762635033403,-500.0,0.00017973,2]
[393417650,1762635033412,-164.38237134,0.00017973,2]
[393417651,1762635033422,-519.36018845,0.00017973,2]
[393417652,1762635033431,-500.0,0.00017973,2]
[393417653,1762635033440,-500.91401203,0.00017973,2]
[393417654,1762635033449,-500.0,0.00017973,2]
[393417655,1762635033459,-500.0,0.00017973,2]
[393417656,1762635033469,-595.29464106,0.00017973,2]
[393417657,1762635033479,-500.0,0.00017973,2]
[393417658,1762635033490,-500.0,0.00017973,2]
[393417659,1762635033499,-500.0,0.00017973,2]
[393417660,1762635033508,-392.14835424,0.00017973,2]
[393417661,1762635033518,-500.0,0.00017973,2]
[393417662,1762635033527,-500.0,0.00017973,2]
[393417663,1762635033537,-500.0,0.00017973,2]
[393417664,1762635033546,-500.0,0.00017973,2]
[393417665,1762635033555,-151.0,0.00017973,2]
[393417666,1762635033564,-151.0,0.00017973,2]
[393417667,1762635033573,-151.0,0.00017973,2]
[393417668,1762635033583,-206.541618,0.00017973,2]
[393417669,1762635033592,-206.541618,0.00017973,2]
[393417670,1762635033601,-206.541618,0.00017973,2]
[393417671,1762635033611,-206.541618,0.00017973,2]
[393417672,1762635033621,-151.0,0.00017973,2]
[393417673,1762635033631,-151.0,0.00017973,2]
[393417674,1762635033640,-441.63246817,0.0001799,2]
[393417675,1762635033650,-441.63246817,0.0001799,2]
[393417676,1762635033660,-441.63246817,0.0001799,2]
[393417677,1762635033670,-300.0,0.00017999,2]
[393417678,1762635033680,-300.0,0.00017999,2]
[393417679,1762635033690,-500.0,0.00017999,2]
[393417680,1762635033699,-150.0,0.00017999,2]
[393417681,1762635033709,-500.0,0.00017999,2]
[393417682,1762635033719,-150.0,0.00017999,2]
[393417683,1762635033729,-150.0,0.00017999,2]
[393417684,1762635033739,-150.0,0.00017999,2]
[393417685,1762635033749,-150.0,0.00017999,2]
[393417686,1762635033759,-500.0,0.00017999,2]
[393417687,1762635033768,-500.0,0.00017999,2]
[393417688,1762635033777,-500.0,0.00017999,2]
[393417689,1762635033787,-500.0,0.00017999,2]
[393417690,1762635033796,-500.0,0.00017999,2]
[393417691,1762635033805,-500.0,0.00017999,2]
[393417692,1762635033815,-500.0,0.00017999,2]
[393417693,1762635033824,-500.0,0.00017999,2]
[393417694,1762635033834,-500.0,0.00017999,2]
[393417695,1762635033843,-500.0,0.00017999,2]
[393417696,1762635033852,-500.0,0.00017999,2]
[393417697,1762635033865,-500.0,0.00017999,2]
[393417698,1762635033874,-500.0,0.00017999,2]
[393417699,1762635033884,-500.0,0.00017999,2]
[393417700,1762635033893,-400.45816091,0.00017999,2]
[393417701,1762635033903,-2744.0,0.00018,2]
[393417702,1762635033914,-151736.32599569,0.00018,2]
[393417703,1762635033924,-151.0,0.00018,2]
[393417704,1762635033933,-110187.48435027,0.00018,2]
[393417705,1762635033949,-497.76627144,0.00018,2]
[393417706,1762635033960,-1192.96581108,0.00018,2]
[393417707,1762635033975,-801.79415419,0.00018,2]
[393417708,1762635034033,159.95,0.00016232,2]
[393417719,1762635037690,-273.61048387,0.00017016,2]
[393417720,1762635037700,-73.70482414,0.00017134,2]
[393417721,1762635037712,-86.24517586,0.00017134,2]
[393417722,1762635037721,-518.015,0.00017989,2]
[393417723,1762635037731,-235.91916413,0.00018,2]
[393417724,1762635037743,-115663.54708414,0.00018,2]
[393417725,1762635037846,-689.32368187,0.00018,2]
[393417726,1762635037859,-1111.4103,0.00018,2]
[393417730,1762635039697,-167.001151,0.00017508,2]
[393417731,1762635039706,-167.001151,0.00017803,2]
[393417732,1762635039715,-5172.52011784,0.00018,2]
[393417733,1762635039751,-8735.02608737,0.00018,2]
[393417734,1762635039862,-740.892036,0.00017508,2]
[393417735,1762635039874,-679.82697248,0.00018,2]
[393417736,1762635039885,-1710.19466749,0.00018,2]
[393417737,1762635039896,-576.82250221,0.00018,2]
[393417738,1762635039916,-271.37002482,0.00018,2]
[393417739,1762635039927,-495.68719811,0.00018,2]
[393417740,1762635039939,-6670.78321751,0.00018,2]
[393417741,1762635039951,-404.95500358,0.00018,2]
[393417742,1762635039962,-395.4041499,0.00018,2]
[393417743,1762635039976,-167.001151,0.00017508,2]
[393417744,1762635039986,-10213.85485314,0.00018,2]
[393417745,1762635039997,-1894.82700342,0.00018,2]
[393417746,1762635040008,-2471.11974918,0.00018,2]
[393417764,1762635043934,-740.892036,0.00017508,2]
[393417765,1762635043947,-167.001151,0.00017508,2]
[393417766,1762635043957,-740.892036,0.00017508,2]
[393417767,1762635043966,-167.001151,0.00017508,2]
[393417768,1762635043975,-740.892036,0.00017803,2]
[393417769,1762635043985,-167.001151,0.00017803,2]
[393417770,1762635043995,-258.080439,0.00017803,2]
[393417771,1762635046239,-355.14240963,0.00017097,2]
[393417772,1762635046250,-233.79759037,0.00017508,2]
[393417784,1762635341285,2751.0,0.00016569,2]
[393417785,1762635385217,1000.0,0.00016497,2]
[393417786,1762635395065,157.42,0.00015682,2]
[393417787,1762635395289,157.42,0.00016012,2]
[393417788,1762635395836,157.42,0.00016342,2]
[393417789,1762635396074,157.42,0.00016672,2]
[393417790,1762635455701,250.0,0.00016495,2]
[393417792,1762635661555,506.66,0.00016173,2]
[393417795,1762635695284,162.76,8.258e-05,2]
[393417796,1762635695465,162.76,9.14e-05,2]
[393417797,1762635695803,162.76,0.00010021,2]
[393417798,1762635696020,162.76,0.00010903,2]
[393417799,1762635696441,162.76,0.00011785,2]
[393417800,1762635696650,162.76,0.00012666,2]
[393417801,1762635696885,162.76,0.00013548,2]
[393417802,1762635697095,162.76,0.00014429,2]
[393417803,1762635697287,162.76,0.00015311,2]
[393417804,1762635697494,162.76,0.00016193,2]
[393417806,1762635720069,999.0,0.00016193,3]
[393417811,1762635791783,7408.02,0.00016133,2]
[393417815,1762635888211,178.95064142,0.00016653,2]
[393417817,1762636062788,1935.55,0.00016438,2]
[393417819,1762636200519,150.0,0.00016063,2]
[393417825,1762636231825,-300.0,0.00016745,2]
[393417826,1762636231835,-195.0,0.00016746,2]
[393417827,1762636231844,-251.96339465,0.00016747,2]
[393417829,1762636231853,-1200.0,0.00016821,2]
[393417830,1762636231862,-1000.0,0.00016821,2]
[393417831,1762636231871,-2500.0,0.00016821,2]
[393417832,1762636231881,-158.08440623,0.00016822,2]
[393417833,1762636231890,-246.24943551,0.00016822,2]
[393417834,1762636231900,-300.0,0.00016909,2]
[393417835,1762636231909,-300.0,0.00016909,2]
[393417836,1762636231919,-300.0,0.00016909,2]
[393417837,1762636231928,-1200.0,0.0001691,2]
[393417838,1762636231938,-151.0,0.00016911,2]
[393417839,1762636231947,-151.0,0.00016911,2]
[393417840,1762636231956,-151.0,0.00016911,2]
[393417841,1762636231965,-151.0,0.00016918,2]
[393417842,1762636231974,-500.0,0.0001692,2]
[393417843,1762636231984,-551.76,0.0001692,2]
[393417844,1762636231993,-500.0,0.0001692,2]
[393417845,1762636232002,-280.1788257,0.0001692,2]
[393417846,1762636232011,-500.0,0.0001692,2]
[393417847,1762636232021,-252.75595474,0.0001692,2]
[393417848,1762636232030,-500.0,0.0001692,2]
[393417849,1762636232039,-500.0,0.0001692,2]
[393417850,1762636232049,-500.0,0.0001692,2]
[393417851,1762636232058,-500.0,0.0001692,2]
[393417852,1762636232067,-500.0,0.0001692,2]
[393417853,1762636232077,-500.0,0.0001692,2]
[393417854,1762636232086,-169.74049658,0.0001692,2]
[393417855,1762636232096,-500.0,0.0001692,2]
[393417856,1762636232105,-549.08160006,0.0001692,2]
[393417858,1762636232115,-500.0,0.0001692,2]
[393417859,1762636232124,-500.0,0.0001692,2]
[393417861,1762636232132,-316.71482719,0.0001692,2]
[393417863,1762636232142,-420000.0,0.00016921,2]
[393417865,1762636232151,-818.45,0.00016922,2]
[393417867,1762636232161,-9999.99,0.00016922,2]
[393417869,1762636232170,-150.99,0.00016922,2]
[393417871,1762636232179,-4064.32,0.0001694,2]
[393417873,1762636232189,-166.67,0.00016955,2]
[393417875,1762636232199,-158.08440621,0.00016957,2]
[393417877,1762636232214,-500.0,0.00016973,2]
[393417879,1762636232223,-500.0,0.00016973,2]
[393417881,1762636232233,-501.76444225,0.00016973,2]
[393417884,1762636232243,-187.73720218,0.00016973,2]
[393417887,1762636232252,-500.0,0.00016973,2]
[393417890,1762636232261,-500.0,0.00016973,2]
[393417893,1762636232270,-500.0,0.00016973,2]
[393417895,1762636232284,-500.0,0.00016973,2]
[393417897,1762636232293,-500.0,0.00016973,2]
[393417899,1762636232303,-500.0,0.00016973,2]
[393417902,1762636232312,-500.0,0.00016973,2]
[393417905,1762636232322,-168.0,0.00016996,2]
[393417908,1762636232332,-500.0,0.00016998,2]
[393417911,1762636232342,-1000.0,0.00016999,2]
[393417913,1762636232351,-27891.1023,0.00016999,2]
[393417917,1762636232360,-250.0,0.00017,2]
[393417920,1762636232370,-157.42,0.00017002,2]
[393417924,1762636232380,-168.0,0.00017084,2]
[393417926,1762636232389,-158.08440621,0.00017092,2]
[393417928,1762636232400,-5888.0,0.00017105,2]
[393417930,1762636232410,-5888.0,0.00017147,2]
[393417932,1762636232419,-551.76,0.00017194,2]
[393417934,1762636232429,-1334.81131088,0.00017212,2]
[393417936,1762636232439,-158.08440621,0.00017226,2]
[393417938,1762636232448,-162.35747732,0.00017253,2]
[393417940,1762636232458,-168.0,0.00017323,2]
[393417942,1762636232468,-157.42,0.00017332,2]
[393417944,1762636232478,-158.08440621,0.00017361,2]
[393417946,1762636232488,-551.76,0.00017468,2]
[393417948,1762636232497,-162.35747732,0.00017469,2]
[393417950,1762636232507,-158.08440621,0.00017496,2]
[393417952,1762636232517,-2000.0,0.000175,2]
[393417954,1762636232527,-1000.0,0.00017521,2]
[393417956,1762636232536,-500.0,0.00017521,2]
[393417958,1762636232546,-1000.0,0.00017521,2]
[393417960,1762636232556,-537.46098494,0.00017521,2]
[393417962,1762636232566,-235.35411794,0.00017521,2]
[393417964,1762636232575,-394.0,0.0001758,2]
[393417966,1762636232584,-158.08440621,0.00017631,2]
[393417968,1762636232594,-355.4,0.00017633,2]
[393417970,1762636232603,-162.35747732,0.00017684,2]
[393417972,1762636232612,-551.76,0.00017742,2]
[393417974,1762636232621,-218.83,0.00017761,2]
[393417976,1762636232630,-158.08440621,0.00017765,2]
[393417978,1762636232639,-168.0,0.00017776,2]
[393417980,1762636232648,-820.0,0.00017817,2]
[393417982,1762636232657,-1596.0,0.00017817,2]
[393417984,1762636232666,-1273.0,0.00017819,2]
[393417987,1762636232676,-812.0,0.00017819,2]
[393417989,1762636232685,-293.64278,0.0001782,2]
[393417991,1762636232696,-1188.0,0.00017865,2]
[393417993,1762636232705,-906.0,0.00017865,2]
[393417995,1762636232714,-3848.1874528,0.00017865,2]
[393417999,1762636232751,-2812.1215472,0.00017865,2]
[393418000,1762636232760,-2142.0,0.00017865,2]
[393418001,1762636232769,-3552.71516573,0.00017865,2]
[393418002,1762636232780,-1599.22750367,0.00017865,2]
[393418003,1762636232791,-634.47129063,0.00017865,2]
[393418004,1762636232802,-690.58603997,0.00017865,2]
[393418005,1762636232811,-394.0,0.00017865,2]
[393418006,1762636232820,-500.0,0.00017873,2]
[393418008,1762636232829,-264.17152854,0.00017873,2]
[393418011,1762636232840,-235.82847146,0.00017873,2]
[393418013,1762636232850,-64.16852854,0.00017898,2]
[393418015,1762636232861,-961.02547146,0.00017898,2]
[393418017,1762636232870,-1500.42043192,0.000179,2]
[393418019,1762636232879,-158.08440621,0.000179,2]
[393418021,1762636232888,-162.35747732,0.000179,2]
[393418023,1762636232898,-2928.20156721,0.000179,2]
[393418025,1762636232911,-2071.79843279,0.000179,2]
[393418027,1762636232920,-720.7008754,0.000179,2]
[393418029,1762636232930,-740.59607804,0.000179,2]
[393418031,1762636232940,-394.0,0.00017903,2]
[393418033,1762636232950,-500.0,0.00017918,2]
[393418035,1762636232959,-293.64279,0.0001793,2]
[393418037,1762636232968,-168.0,0.00017972,2]
[393418039,1762636232977,-500.0,0.00017973,2]
[393418041,1762636232986,-136.62455511,0.00017973,2]
[393418043,1762636232998,-40.74728016,0.00017973,2]
[393418045,1762636233008,-500.0,0.00017973,2]
[393418047,1762636233017,-412.56298775,0.00017973,2]
[393418048,1762636233032,-87.43701225,0.00017973,2]
[393418049,1762636233042,-222.87298775,0.00017973,2]
[393418050,1762636233054,-277.12701225,0.00017973,2]
[393418051,1762636233063,-500.0,0.00017973,2]
[393418052,1762636233073,-500.0,0.00017973,2]
[393418053,1762636233082,-78.26816319,0.00017973,2]
[393418054,1762636233094,-421.73183681,0.00017973,2]
[393418055,1762636233103,-500.0,0.00017973,2]
[393418056,1762636233113,-500.0,0.00017973,2]
[393418057,1762636233122,-500.0,0.00017973,2]
[393418058,1762636233132,-500.0,0.00017973,2]
[393418059,1762636233142,-500.0,0.00017973,2]
[393418060,1762636233152,-500.0,0.00017973,2]
[393418061,1762636233163,-14058.58566179,0.00017991,2]
[393418062,1762636233172,-40424.1449356,0.00017994,2]
[393418063,1762636233182,-150.0,0.00017999,2]
[393418064,1762636233191,-150.0,0.00017999,2]
[393418065,1762636233201,-300.0,0.00017999,2]
[393418066,1762636233214,-150.0,0.00017999,2]
[393418067,1762636233225,-516.69,0.00017999,2]
[393418068,1762636233235,-150.0,0.00017999,2]
[393418069,1762636233244,-150.0,0.00017999,2]
[393418070,1762636233256,-200.0,0.00017999,2]
[393418071,1762636233265,-150.0,0.00017999,2]
[393418072,1762636233275,-150.0,0.00017999,2]
[393418073,1762636233286,-500.0,0.00017999,2]
[393418074,1762636233296,-2203.0,0.00018,2]
[393418075,1762636233306,-90516.81617849,0.00018,2]
[393418076,1762636233319,-922.65999994,0.00018,2]
[393418077,1762636233331,-1403.84725605,0.00018,2]
[393418082,1762636237844,-1008.93843287,0.00016821,2]
[393418086,1762636237901,-386.1649995,0.00016821,2]
[393418087,1762636237955,-252459.22055012,0.00016821,2]
[393418088,1762636238121,-353.1,0.00016821,2]
[393418089,1762636238134,-5164.68120525,0.00016821,2]
[393418102,1762636240008,-614.46270187,0.00016821,2]
[393418105,1762636240020,-654.45,0.00016821,2]
[393418114,1762636240107,-3892.46214793,0.00016821,2]
[393418116,1762636240118,-751.66775334,0.00016821,2]
[393418119,1762636240129,-1448.58484785,0.00016821,2]
[393418123,1762636240221,-2065.99999,0.00016821,2]
[393418124,1762636240233,-2791.95853946,0.00016821,2]
[393418125,1762636240245,-10283.65646986,0.00016821,2]
[393418126,1762636240256,-2639.93182588,0.00016821,2]